fUSD/lending_fUSD_20240620
["ID","MTS","AMOUNT","RATE_DAILY","PERIOD"]
[329933859,1718843456621,-4006.82,0.00013972,2]
[329933860,1718843456630,-642.24,0.00013972,2]
[329933861,1718843456641,-500.0,0.00013972,2]
[329933862,1718843456655,-1328.0,0.00013972,2]
[329933863,1718843456667,-2253.14,0.00013972,2]
[329933864,1718843456679,-779.22,0.00013972,2]
[329933865,1718843456691,-8851.27,0.00013972,2]
[329933866,1718843456701,-1379.37,0.00013972,2]
[329933867,1718843456711,-5000.0,0.00013972,2]
[329933868,1718843456721,-5103.37,0.00013972,2]
[329933869,1718843456733,-500.0,0.00013972,2]
[329933870,1718843456743,-5835.53,0.00013972,2]
[329933871,1718843456754,-733.62,0.00013972,2]
[329933872,1718843456764,-7355.64,0.00013972,2]
[329933873,1718843456774,-627.47,0.00013972,2]
[329933874,1718843456784,-633.84,0.00013972,2]
[329933875,1718843456794,-752.9,0.00013972,2]
[329933876,1718843456804,-1138.02,0.00013972,2]
[329933877,1718843456814,-611.48937291,0.00013972,2]
[329933878,1718843456824,-995.13,0.00013972,2]
[329933879,1718843456834,-500.0,0.00013972,2]
[329933880,1718843456843,-2541.51,0.00013972,2]
[329933881,1718843456853,-676.55,0.00013972,2]
[329933882,1718843456862,-23152.39,0.00013972,2]
[329933883,1718843456871,-1032.29,0.00013972,2]
[329933884,1718843456880,-5194.08,0.00013972,2]
[329933885,1718843456890,-8951.91,0.00013972,2]
[329933886,1718843456899,-1932.8,0.00013972,2]
[329933887,1718843456919,-9395.12,0.00013972,2]
[329933888,1718843456928,-997.78,0.00013972,2]
[329933889,1718843456938,-1380.02,0.00013972,2]
[329933890,1718843456947,-500.0,0.00013972,2]
[329933891,1718843456956,-3121.51,0.00013972,2]
[329933892,1718843456965,-2325.58,0.00013972,2]
[329933893,1718843456974,-1854.41,0.00013972,2]
[329933894,1718843456983,-3591.62,0.00013972,2]
[329933895,1718843456992,-1186.48,0.00013972,2]
[329933896,1718843457002,-2039.12,0.00013972,2]
[329933897,1718843457011,-816.59,0.00013972,2]
[329933898,1718843457022,-1542.71,0.00013972,2]
[329933899,1718843457032,-15956.34,0.00013972,2]
[329933900,1718843457041,-4961.98,0.00013972,2]
[329933901,1718843457051,-500.0,0.00013972,2]
[329933902,1718843457061,-500.0,0.00013972,2]
[329933903,1718843457071,-1819.54,0.00013972,2]
[329933904,1718843457400,-536.9,0.00013972,2]
[329933905,1718843457411,-500.0,0.00013972,2]
[329933906,1718843457421,-1658.56669018,0.00013972,2]
[329933907,1718843457531,-4200.6,0.00013972,2]
[329933908,1718843457542,-2681.35330982,0.00013972,2]
[329933909,1718843457551,-2265.92,0.00013972,2]
[329933910,1718843457561,-756.25,0.00013972,2]
[329933911,1718843457570,-3741.47,0.00013972,2]
[329933912,1718843457580,-3849.66,0.00013972,2]
[329933913,1718843457589,-995.38,0.00013972,2]
[329933914,1718843457598,-1079.03,0.00013972,2]
[329933915,1718843457607,-2105.72,0.00013972,2]
[329933916,1718843457616,-1213.12489865,0.00013972,2]
[329933917,1718843457628,-296.26673161,0.00013972,2]
[329933918,1718843457640,-262.85836974,0.00013972,2]
[329933919,1718843457652,-500.0,0.00013972,2]
[329933920,1718843457661,-500.0,0.00013972,2]
[329933921,1718843457671,-1072.29,0.00013972,2]
[329933922,1718843457681,-10257.55,0.00013972,2]
[329933923,1718843457692,-4413.4,0.00013972,2]
[329933924,1718843457702,-541.68,0.00013972,2]
[329933925,1718843457713,-4107.96,0.00013972,2]
[329933926,1718843457722,-1704.37,0.00013972,2]
[329933927,1718843457734,-500.0,0.00013972,2]
[329933928,1718843457745,-1057.92,0.00013972,2]
[329933929,1718843457756,-500.0,0.00013972,2]
[329933930,1718843457766,-1189.4,0.00013972,2]
[329933931,1718843457775,-369.73402627,0.00013972,2]
[329933932,1718843457788,-1037.60597373,0.00013972,2]
[329933933,1718843457798,-1324.4,0.00013972,2]
[329933934,1718843457808,-500.0,0.00013972,2]
[329933935,1718843457817,-2141.64,0.00013972,2]
[329933936,1718843457826,-295.68092615,0.00013972,2]
[329933937,1718843457838,-2353.38979589,0.00013972,2]
[329933938,1718843457856,-483.4916789,0.00013972,2]
[329933939,1718843457867,-1919.41759906,0.00013972,2]
[329933940,1718843457878,-5431.07679247,0.00013972,2]
[329933941,1718843457903,-19651.60320753,0.00013972,2]
[329933942,1718843457913,-5633.97,0.00013972,2]
[329933943,1718843457923,-1047.63,0.00013972,2]
[329933944,1718843457932,-3219.38,0.00013972,2]
[329933945,1718843457942,-980.94,0.00013972,2]
[329933946,1718843457951,-1990.04,0.00013972,2]
[329933947,1718843457960,-6115.37,0.00013972,2]
[329933948,1718843457969,-500.0,0.00013972,2]
[329933949,1718843457978,-500.0,0.00013972,2]
[329933950,1718843457987,-1540.05483603,0.00013972,2]
[329933951,1718843457999,-37.67516397,0.00013972,2]
[329933952,1718843458008,-5354.13,0.00013972,2]
[329933953,1718843458018,-515.33,0.00013972,2]
[329933954,1718843458027,-2510.82,0.00013972,2]
[329933955,1718843458036,-500.0,0.00013972,2]
[329933956,1718843458045,-3250.83,0.00013972,2]
[329933957,1718843458054,-1110.96,0.00013972,2]
[329933958,1718843458063,-1991.45,0.00013972,2]
[329933959,1718843458072,-500.0,0.00013972,2]
[329933960,1718843458081,-1495.02,0.00013972,2]
[329933961,1718843458090,-2483.96,0.00013972,2]
[329933962,1718843458099,-2481.35,0.00013972,2]
[329933963,1718843458108,-2298.89,0.00013972,2]
[329933964,1718843458118,-2981.36,0.00013972,2]
[329933965,1718843458127,-1602.97,0.00013972,2]
[329933966,1718843458136,-1004.63,0.00013972,2]
[329933967,1718843458146,-779.71,0.00013972,2]
[329933968,1718843458155,-500.0,0.00013972,2]
[329933969,1718843458164,-1551.85,0.00013972,2]
[329933970,1718843458174,-2598.02,0.00013972,2]
[329933971,1718843458183,-500.0,0.00013972,2]
[329933972,1718843458193,-3231.08,0.00013972,2]
[329933973,1718843458202,-339.31234146,0.00013972,2]
[329933974,1718843458216,-250.36765854,0.00013972,2]
[329933975,1718843458225,-608.48029703,0.00013972,2]
[329933976,1718843486352,155.0,0.00013972,10]
[329933977,1718843500026,155.0,0.00013972,10]
[329933978,1718843516029,248.9161388,0.00013972,10]
[329933982,1718843669765,1978.61138425,0.00015,10]
[329933983,1718843879601,162.9988269,0.00016,20]
[329933984,1718843900580,3295.2,0.00015,10]
[329933986,1718843977596,1135.98,0.00015,10]
[329933987,1718843999508,995.77,0.00015,10]
[329933988,1718844049389,1028.169,0.00015,10]
[329933989,1718844310219,151.0,0.0002511,120]
[329934001,1718844632471,-155.0,0.00010297,2]
[329934002,1718844632480,-342.45,0.00010298,2]
[329934003,1718844632489,-500.0,0.0001081,2]
[329934004,1718844632498,-822.64,0.00010959,2]
[329934005,1718844632510,-7327.50323782,0.000112,2]
[329934006,1718844632521,-387.99999996,0.000112,2]
[329934007,1718844632626,-749.56,0.000112,2]
[329934008,1718844632638,-15610.67498763,0.000112,2]
[329934009,1718844632647,-250.0,0.00011972,2]
[329934010,1718844632657,-2118.38,0.00012215,2]
[329934011,1718844632666,-2688.39276045,0.0001229,2]
[329934012,1718844632675,-5605.76,0.00012299,2]
[329934013,1718844632684,-5605.76,0.00012299,2]
[329934014,1718844632693,-5605.76,0.00012299,2]
[329934015,1718844632703,-5605.76,0.00012299,2]
[329934017,1718844632712,-5605.76,0.00012299,2]
[329934019,1718844632722,-5605.76,0.00012299,2]
[329934020,1718844632730,-5605.76,0.00012299,2]
[329934021,1718844632740,-5605.76,0.00012299,2]
[329934022,1718844632749,-5605.76,0.00012299,2]
[329934023,1718844632759,-5605.76,0.00012299,2]
[329934024,1718844632768,-5605.76,0.00012299,2]
[329934025,1718844632778,-5605.76,0.00012299,2]
[329934026,1718844632787,-5605.76,0.00012299,2]
[329934027,1718844632797,-5605.76,0.00012299,2]
[329934028,1718844632807,-5605.76,0.00012299,2]
[329934029,1718844632816,-5605.76,0.00012299,2]
[329934030,1718844632825,-5605.76,0.00012299,2]
[329934031,1718844632835,-5605.76,0.00012299,2]
[329934032,1718844632844,-5605.76,0.00012299,2]
[329934033,1718844632853,-5605.76,0.00012299,2]
[329934034,1718844632862,-5605.76,0.00012299,2]
[329934035,1718844632871,-5605.76,0.00012299,2]
[329934036,1718844632880,-5605.76,0.00012299,2]
[329934037,1718844632890,-5605.79417451,0.00012299,2]
[329934038,1718844632900,-74132.38371319,0.000123,2]
[329934039,1718844632953,-10338.91143297,0.000123,2]
[329934040,1718844632969,-16234.94453886,0.000123,2]
[329934041,1718844632981,-1798.17271157,0.000123,2]
[329934042,1718844633019,-25784.89240085,0.000123,2]
[329934043,1718844633036,-801.36554768,0.000123,2]
[329934044,1718844638662,-383.99156559,0.000123,2]
[329934045,1718844638731,-51945.11902864,0.000123,2]
[329934046,1718844638813,-701.89106013,0.000123,2]
[329934047,1718844638937,-21767.41329664,0.000123,2]
[329934054,1718844640521,-10454.55,0.000123,2]
[329934055,1718844640533,-1258.93178513,0.000123,2]
[329934056,1718844640545,-1188.53561787,0.000123,2]
[329934057,1718844640556,-1152.44789999,0.000123,2]
[329934058,1718844640567,-586.80049511,0.000123,2]
[329934059,1718844640579,-409.45999997,0.000123,2]
[329934060,1718844640590,-6212.55820317,0.000123,2]
[329934061,1718844640601,-775.77409809,0.000123,2]
[329934062,1718844640613,-3107.12544579,0.000123,2]
[329934063,1718844640625,-1022.04087,0.000123,2]
[329934064,1718844640637,-500.09,0.000123,2]
[329934065,1718844640660,-4608.4,0.000123,2]
[329934066,1718844640830,-910.0,0.000123,2]
[329934067,1718844640842,-13857.20132762,0.000123,2]
[329934068,1718844640853,-9613.92971346,0.000123,2]
[329934069,1718844640865,-7618.31324444,0.000123,2]
[329934070,1718844640875,-231.66142858,0.00012304,2]
[329934071,1718844640887,-537.33564984,0.00012304,2]
[329934100,1718844643681,-31.00292158,0.00012304,2]
[329934101,1718844643691,-524.33,0.00012328,2]
[329934102,1718844643700,-342.45,0.00012562,2]
[329934103,1718844643709,-524.33,0.00012602,2]
[329934104,1718844643718,-369.13,0.00012696,2]
[329934105,1718844643727,-200.0,0.00012855,2]
[329934106,1718844643736,-524.33,0.00012876,2]
[329934107,1718844643745,-20159.47703718,0.00013,2]
[329934108,1718844643757,-6687.536406,0.00013,2]
[329934109,1718844643776,-525.52500016,0.00013,2]
[329934111,1718844643830,-501.35,0.00013,2]
[329934113,1718844643841,-748.12442162,0.00013,2]
[329934115,1718844643852,-892.99999995,0.00013,2]
[329934118,1718844643864,-484.98713509,0.00013,2]
[329934120,1718844643873,-524.33,0.0001315,2]
[329934122,1718844643882,-172.46,0.00013321,2]
[329934124,1718844643892,-524.33,0.00013424,2]
[329934126,1718844643902,-145.02270915,0.0001353,2]
[329934128,1718844643913,-154.97729085,0.0001353,2]
[329934130,1718844643922,-248.0,0.0001353,2]
[329934132,1718844643931,-173.26790298,0.00013598,2]
[329934134,1718844643941,-10017.0348,0.00013598,2]
[329934136,1718844643951,-21953.13815842,0.00013598,2]
[329934215,1718844646601,-270.462826,0.00013598,2]
[329934216,1718844646613,-1748.9835148,0.00013598,2]
[329934217,1718844646688,-2085.163727,0.00013598,2]
[329934218,1718844646700,-31917.53181174,0.00013598,2]
[329934233,1718844697051,162.49317773,0.00013598,10]
[329934234,1718844747000,-954.21931551,0.00026,120]
[329934236,1718845211005,409.97,0.00024,30]
[329934237,1718845213533,500.0,0.00026,90]
[329934238,1718845220508,500.0,0.00024,30]
[329934239,1718845229418,500.0,0.00024,30]
[329934240,1718845242110,500.0,0.00026,90]
[329934241,1718845263025,500.0,0.00026,90]
[329934242,1718845292798,340.0,0.00026,90]
[329934323,1718845831879,-308.2,0.00010061,2]
[329934324,1718845831910,-155.0,0.00011804,2]
[329934325,1718845831920,-250.0,0.00011805,2]
[329934326,1718845831929,-629.3,0.00011828,2]
[329934327,1718845831939,-629.3,0.00011898,2]
[329934328,1718845831949,-1411.92,0.0001193,2]
[329934329,1718845831958,-629.3,0.00011968,2]
[329934330,1718845831967,-629.3,0.00012038,2]
[329934332,1718845831976,-640.0,0.000121,2]
[329934334,1718845831985,-629.3,0.00012109,2]
[329934336,1718845831994,-629.3,0.00012179,2]
[329934338,1718845832004,-629.3,0.00012249,2]
[329934340,1718845832013,-629.3,0.00012319,2]
[329934342,1718845832022,-308.2,0.00012325,2]
[329934344,1718845832030,-629.3,0.00012389,2]
[329934346,1718845832039,-629.3,0.0001246,2]
[329934348,1718845832049,-629.3,0.0001253,2]
[329934350,1718845832058,-629.3,0.000126,2]
[329934352,1718845832066,-295.3,0.00012654,2]
[329934354,1718845832076,-360.0,0.00012852,2]
[329934356,1718845832087,-1625.5312,0.00013498,2]
[329934358,1718845832097,-467.5535,0.00013498,2]
[329934360,1718845832106,-453.2699,0.00013498,2]
[329934362,1718845832116,-211.9127,0.00013498,2]
[329934364,1718845832125,-1000.0,0.00013593,2]
[329934366,1718845832135,-171.31662175,0.00013598,2]
[329934368,1718845832144,-3000.0,0.00013598,2]
[329934369,1718845832153,-195.03165963,0.00013598,2]
[329934371,1718845832162,-7393.60953686,0.00013598,2]
[329934373,1718845832175,-1000.0,0.00013598,2]
[329934378,1718845832220,-388.88750137,0.00013598,2]
[329934380,1718845832231,-13250.92040001,0.00013598,2]
[329934383,1718845832243,-573.473679,0.00013598,2]
[329934385,1718845832255,-1329.05096925,0.00013598,2]
[329934387,1718845832266,-501.08,0.00013598,2]
[329934391,1718845832290,-510.3000105,0.00013598,2]
[329934393,1718845832301,-726.48604474,0.00013598,2]
[329934395,1718845832312,-1500.0,0.00013598,2]
[329934414,1718845837584,-173.26790298,0.00013598,2]
[329934415,1718845837595,-1409.61809748,0.00013598,2]
[329934416,1718845837607,-257.82237684,0.00013598,2]
[329934417,1718845837619,-22230.81641486,0.00013598,2]
[329934418,1718845837630,-4572.78453988,0.00013598,2]
[329934419,1718845837641,-47004.34862921,0.00013598,2]
[329934420,1718845837651,-50631.0663,0.00013598,2]
[329934421,1718845837660,-7956.9268,0.00013598,2]
[329934422,1718845837670,-7500.0,0.00013598,2]
[329934423,1718845837679,-2500.0,0.00013598,2]
[329934424,1718845837689,-1000.0,0.000136,2]
[329934425,1718845837699,-640.0,0.00013612,2]
[329934426,1718845837708,-240.74856908,0.00013618,2]
[329934427,1718845837718,-171.31662171,0.00013674,2]
[329934428,1718845837727,-1027.15134809,0.00013693,2]
[329934429,1718845837736,-1131.23443776,0.00013693,2]
[329934430,1718845837745,-1038.51015124,0.00013693,2]
[329934431,1718845837754,-1094.77918042,0.00013693,2]
[329934432,1718845837764,-202.32768482,0.00013696,2]
[329934433,1718845837774,-1070.07487293,0.00013697,3]
[329934434,1718845837783,-2394.76,0.00013698,2]
[329934435,1718845837793,-500.0,0.00013698,2]
[329934436,1718845837803,-574.37,0.00013698,2]
[329934437,1718845837812,-500.0,0.00013698,2]
[329934438,1718845837821,-607.95,0.00013698,2]
[329934439,1718845837831,-500.0,0.00013698,2]
[329934440,1718845837842,-613.07,0.00013698,2]
[329934441,1718845837851,-500.0,0.00013698,2]
[329934442,1718845837860,-399.4829943,0.00013698,2]
[329934443,1718845837869,-500.0,0.00013698,2]
[329934444,1718845837879,-500.0,0.00013698,2]
[329934445,1718845837889,-251.1575849,0.00013698,2]
[329934446,1718845837899,-557.19,0.00013698,2]
[329934447,1718845837909,-548.17,0.00013698,2]
[329934448,1718845837918,-500.0,0.00013698,2]
[329934449,1718845837927,-711.7,0.00013698,2]
[329934450,1718845837937,-500.0,0.00013698,2]
[329934451,1718845837945,-500.0,0.00013698,2]
[329934453,1718845837954,-500.0,0.00013698,2]
[329934455,1718845837964,-594.34639233,0.00013698,2]
[329934457,1718845837973,-500.0,0.00013698,2]
[329934475,1718845838256,-500.0,0.00013698,2]
[329934477,1718845838267,-500.0,0.00013698,2]
[329934479,1718845838278,-500.0,0.00013698,2]
[329934481,1718845838287,-500.0,0.00013698,2]
[329934483,1718845838296,-500.0,0.00013698,2]
[329934484,1718845838306,-500.0,0.00013698,2]
[329934486,1718845838315,-500.0,0.00013698,2]
[329934488,1718845838325,-500.0,0.00013698,2]
[329934490,1718845838334,-512.43,0.00013698,2]
[329934492,1718845838345,-500.0,0.00013698,2]
[329934494,1718845838354,-500.0,0.00013698,2]
[329934496,1718845838363,-500.0,0.00013698,2]
[329934497,1718845838373,-500.0,0.00013698,2]
[329934499,1718845838384,-500.0,0.00013698,2]
[329934501,1718845838398,-500.0,0.00013698,2]
[329934502,1718845838408,-500.0,0.00013698,2]
[329934504,1718845838417,-500.0,0.00013698,2]
[329934505,1718845838427,-500.0,0.00013698,2]
[329934507,1718845838438,-540.54,0.00013698,2]
[329934509,1718845838447,-500.0,0.00013698,2]
[329934511,1718845838458,-500.0,0.00013698,2]
[329934513,1718845838468,-500.0,0.00013698,2]
[329934515,1718845838478,-500.0,0.00013698,2]
[329934517,1718845838486,-500.0,0.00013698,2]
[329934518,1718845838496,-500.0,0.00013698,2]
[329934520,1718845838505,-500.0,0.00013698,2]
[329934522,1718845838514,-500.0,0.00013698,2]
[329934523,1718845838524,-1422.53,0.00013698,2]
[329934524,1718845838533,-500.0,0.00013698,2]
[329934525,1718845838542,-500.0,0.00013698,2]
[329934526,1718845838552,-500.0,0.00013698,2]
[329934527,1718845838562,-643.31,0.00013698,2]
[329934528,1718845838572,-500.0,0.00013698,2]
[329934529,1718845838582,-1440.92,0.00013698,2]
[329934530,1718845838593,-500.0,0.00013698,2]
[329934531,1718845838602,-500.0,0.00013698,2]
[329934532,1718845838611,-500.0,0.00013698,2]
[329934533,1718845838620,-500.0,0.00013698,2]
[329934534,1718845838630,-500.0,0.00013698,2]
[329934535,1718845838640,-170.46016099,0.00013698,2]
[329934536,1718845838649,-500.0,0.00013698,2]
[329934537,1718845838660,-500.0,0.00013698,2]
[329934538,1718845838671,-500.0,0.00013698,2]
[329934539,1718845838681,-500.0,0.00013698,2]
[329934540,1718845838690,-547.25,0.00013698,2]
[329934541,1718845838700,-500.0,0.00013698,2]
[329934542,1718845838710,-616.77,0.00013698,2]
[329934543,1718845838720,-500.0,0.00013698,2]
[329934544,1718845838730,-500.0,0.00013698,2]
[329934545,1718845838740,-500.0,0.00013698,2]
[329934546,1718845838751,-373.40867852,0.00013698,2]
[329934547,1718845838760,-793.15,0.00013698,2]
[329934548,1718845838770,-612.6,0.00013698,2]
[329934549,1718845838780,-511.17,0.00013698,2]
[329934550,1718845838790,-500.0,0.00013698,2]
[329934551,1718845838803,-500.0,0.00013698,2]
[329934552,1718845838812,-734.63,0.00013698,2]
[329934553,1718845838821,-967.49,0.00013698,2]
[329934554,1718845838831,-500.0,0.00013698,2]
[329934555,1718845838843,-500.0,0.00013698,2]
[329934556,1718845838852,-696.96,0.00013698,2]
[329934557,1718845838862,-500.0,0.00013698,2]
[329934558,1718845838871,-500.0,0.00013698,2]
[329934559,1718845838881,-808.42,0.00013698,2]
[329934560,1718845838890,-576.52,0.00013698,2]
[329934561,1718845838899,-500.0,0.00013698,2]
[329934562,1718845838909,-500.0,0.00013698,2]
[329934563,1718845838918,-1215.45,0.00013698,2]
[329934564,1718845838927,-500.0,0.00013698,2]
[329934565,1718845838936,-1449.15,0.00013698,2]
[329934566,1718845838946,-317.7986197,0.00013698,2]
[329934567,1718845838956,-1395.56,0.00013698,2]
[329934568,1718845838967,-500.0,0.00013698,2]
[329934569,1718845838976,-500.0,0.00013698,2]
[329934570,1718845838986,-257.14613986,0.00013698,2]
[329934571,1718845838995,-553.96,0.00013698,2]
[329934572,1718845839006,-500.0,0.00013698,2]
[329934573,1718845839016,-1244.83,0.00013698,2]
[329934574,1718845839026,-500.0,0.00013698,2]
[329934575,1718845839036,-608.61,0.00013698,2]
[329934576,1718845839045,-1094.38,0.00013698,2]
[329934577,1718845839056,-500.0,0.00013698,2]
[329934578,1718845839066,-617.2,0.00013698,2]
[329934579,1718845839076,-989.82,0.00013698,2]
[329934580,1718845839085,-500.0,0.00013698,2]
[329934581,1718845839099,-445.80154355,0.00013698,2]
[329934582,1718845839108,-500.0,0.00013698,2]
[329934583,1718845839119,-818.95,0.00013698,2]
[329934584,1718845839128,-730.63,0.00013698,2]
[329934585,1718845839137,-500.0,0.00013698,2]
[329934586,1718845839147,-500.0,0.00013698,2]
[329934587,1718845839157,-863.29,0.00013698,2]
[329934588,1718845839166,-695.9,0.00013698,2]
[329934589,1718845839176,-500.0,0.00013698,2]
[329934590,1718845839186,-1118.49,0.00013698,2]
[329934591,1718845839196,-500.0,0.00013698,2]
[329934592,1718845839206,-500.0,0.00013698,2]
[329934593,1718845839216,-1042.26,0.00013698,2]
[329934594,1718845839226,-955.0,0.00013698,2]
[329934595,1718845839235,-500.0,0.00013698,2]
[329934596,1718845839244,-500.0,0.00013698,2]
[329934597,1718845839254,-974.53,0.00013698,2]
[329934598,1718845839264,-500.0,0.00013698,2]
[329934599,1718845839273,-500.0,0.00013698,2]
[329934600,1718845839283,-1029.15,0.00013698,2]
[329934601,1718845839293,-1044.79,0.00013698,2]
[329934602,1718845839302,-500.0,0.00013698,2]
[329934603,1718845839311,-679.99,0.00013698,2]
[329934604,1718845839321,-500.0,0.00013698,2]
[329934605,1718845839330,-500.0,0.00013698,2]
[329934606,1718845839342,-579.13,0.00013698,2]
[329934607,1718845839352,-637.27,0.00013698,2]
[329934608,1718845839362,-500.0,0.00013698,2]
[329934609,1718845839372,-500.0,0.00013698,2]
[329934610,1718845839387,-921.05,0.00013698,2]
[329934611,1718845839396,-1270.41,0.00013698,2]
[329934612,1718845839406,-500.0,0.00013698,2]
[329934613,1718845839416,-1366.48,0.00013698,2]
[329934614,1718845839427,-500.0,0.00013698,2]
[329934615,1718845839437,-500.0,0.00013698,2]
[329934616,1718845839446,-500.0,0.00013698,2]
[329934617,1718845839456,-684.69,0.00013698,2]
[329934618,1718845839467,-550.64,0.00013698,2]
[329934619,1718845839477,-500.0,0.00013698,2]
[329934620,1718845839487,-1003.0,0.00013698,2]
[329934621,1718845839497,-1629.45,0.00013698,2]
[329934622,1718845839506,-500.0,0.00013698,2]
[329934623,1718845839516,-554.21,0.00013698,2]
[329934624,1718845839526,-500.0,0.00013698,2]
[329934625,1718845839536,-500.0,0.00013698,2]
[329934626,1718845839546,-500.0,0.00013698,2]
[329934627,1718845839556,-501.79621637,0.00013698,2]
[329934628,1718845839566,-1250.27,0.00013698,2]
[329934629,1718845839575,-634.28,0.00013698,2]
[329934630,1718845839585,-500.0,0.00013698,2]
[329934631,1718845839596,-1489.5,0.00013698,2]
[329934632,1718845839605,-1377.77,0.00013698,2]
[329934633,1718845839615,-500.0,0.00013698,2]
[329934634,1718845839624,-466.0,0.00013698,2]
[329934635,1718845839634,-500.0,0.00013698,2]
[329934636,1718845839644,-500.0,0.00013698,2]
[329934637,1718845839653,-717.24,0.00013698,2]
[329934638,1718845839663,-839.25,0.00013698,2]
[329934639,1718845839672,-500.0,0.00013698,2]
[329934640,1718845839682,-984.76,0.00013698,2]
[329934641,1718845839692,-500.0,0.00013698,2]
[329934642,1718845839702,-500.0,0.00013698,2]
[329934643,1718845839711,-500.0,0.00013698,2]
[329934644,1718845839721,-500.0,0.00013698,2]
[329934645,1718845839730,-637.61,0.00013698,2]
[329934646,1718845839740,-500.0,0.00013698,2]
[329934647,1718845839750,-500.0,0.00013698,2]
[329934648,1718845839759,-500.0,0.00013698,2]
[329934649,1718845839769,-500.0,0.00013698,2]
[329934650,1718845839779,-634.14,0.00013698,2]
[329934651,1718845839788,-953.84,0.00013698,2]
[329934652,1718845839798,-500.0,0.00013698,2]
[329934653,1718845839808,-500.0,0.00013698,2]
[329934654,1718845839818,-500.0,0.00013698,2]
[329934655,1718845839827,-996.86,0.00013698,2]
[329934656,1718845839837,-1060.06,0.00013698,2]
[329934657,1718845839848,-500.0,0.00013698,2]
[329934658,1718845839857,-1428.18,0.00013698,2]
[329934659,1718845839866,-557.48,0.00013698,2]
[329934660,1718845839875,-1342.84,0.00013698,2]
[329934661,1718845839884,-655.7,0.00013698,2]
[329934662,1718845839894,-918.46,0.00013698,2]
[329934663,1718845839904,-500.0,0.00013698,2]
[329934664,1718845839913,-576.82,0.00013698,2]
[329934665,1718845839922,-500.0,0.00013698,2]
[329934666,1718845839932,-640.77,0.00013698,2]
[329934667,1718845839941,-500.0,0.00013698,2]
[329934668,1718845839951,-500.0,0.00013698,2]
[329934669,1718845839960,-740.85,0.00013698,2]
[329934670,1718845839969,-782.26,0.00013698,2]
[329934671,1718845839978,-797.73,0.00013698,2]
[329934672,1718845839987,-1034.24,0.00013698,2]
[329934673,1718845839997,-500.0,0.00013698,2]
[329934674,1718845840006,-151.29,0.00013698,2]
[329934675,1718845840015,-500.0,0.00013698,2]
[329934676,1718845840024,-500.0,0.00013698,2]
[329934677,1718845840034,-500.0,0.00013698,2]
[329934678,1718845840044,-500.0,0.00013698,2]
[329934679,1718845840054,-500.0,0.00013698,2]
[329934680,1718845840063,-500.0,0.00013698,2]
[329934681,1718845840073,-1249.96,0.00013698,2]
[329934682,1718845840082,-500.0,0.00013698,2]
[329934683,1718845840092,-830.9,0.00013698,2]
[329934684,1718845840102,-500.0,0.00013698,2]
[329934685,1718845840111,-500.0,0.00013698,2]
[329934686,1718845840120,-1212.11,0.00013698,2]
[329934687,1718845840130,-500.0,0.00013698,2]
[329934688,1718845840139,-500.0,0.00013698,2]
[329934689,1718845840148,-500.0,0.00013698,2]
[329934690,1718845840158,-565.13,0.00013698,2]